{"text_format":"1","workbook":"xlsx","n_sheets":3,"sheets":["入力画面","労働条件通知書作成ツール","労働条件通知書作成ツール (短時間勤務)"],"not_rendered":{"charts":0,"images":0,"macros":0,"external_links":0,"defined_names":0,"comments":0,"pivot_tables":0},"unopened":[],"bounds":{"document_bytes":16777216,"sheet_cells":100000,"rows_first":2000,"rows_last":500,"rows_between":2000,"halvings":0,"cell_chars":16384,"cell_head_chars":4096},"cells_cut":0,"cells_raw":0,"read":"whole","date_system":"1900"}

{"sheet":"入力画面","index":0,"n_rows":16,"n_cols":9,"rows_kept":16,"cut":false,"hidden":false,"merged":[[4,1,4,2],[13,1,13,8],[9,2,9,3],[16,1,16,8]]}
[]
[null,"労働条件通知書作成ツール"]
[]
[null,"対象者名",null,null,"基本賃金",null,"円"]
[null,null,null,null,"手当1",null,"手当",null,"円"]
[null,null,null,null,"手当2",null,"手当",null,"円"]
[null,null,null,null,"手当3",null,"手当",null,"円"]
[null,null,null,null,"手当4",null,"手当",null,"円"]
[]
[null,"雇入日"]
[null,"（契約期間ありの場合",null,null,"から",null,"まで"]
[]
[null,"就業場所"]
[]
[]
[null,"業務の内容"]

{"sheet":"労働条件通知書作成ツール","index":1,"n_rows":86,"n_cols":15,"rows_kept":86,"cut":false,"hidden":false,"merged":[[0,1,0,14],[1,1,1,14],[3,1,3,3],[2,11,2,14],[4,6,4,8],[5,6,5,8],[6,6,6,8],[4,9,5,14],[6,9,6,14],[7,4,7,6],[7,8,7,10],[22,3,22,14],[8,8,8,14],[11,4,11,6],[11,8,11,11],[12,4,12,6],[12,8,12,9],[12,10,12,13],[16,6,16,12],[20,10,20,12],[13,1,14,2],[21,1,21,2],[21,3,21,14],[24,5,24,6],[24,7,24,10],[24,12,24,14],[25,12,25,14],[27,5,27,6],[27,8,27,9],[38,12,38,13],[36,9,36,13],[37,9,37,13],[33,5,33,6],[33,8,33,9],[33,11,33,12],[35,9,35,13],[39,4,39,5],[39,7,39,8],[39,10,39,11],[26,1,42,2],[38,9,38,10],[31,11,31,12],[32,11,32,12],[29,4,29,6],[29,9,29,11],[31,5,31,6],[31,8,31,9],[32,5,32,6],[32,8,32,9],[46,6,46,14],[41,6,41,14],[44,8,44,9],[44,10,44,13],[43,10,43,13],[58,7,58,8],[58,10,58,11],[49,6,49,7],[50,9,50,11],[50,5,50,7],[52,7,52,13],[52,3,52,5],[53,7,53,13],[54,6,54,14],[55,5,55,7],[56,7,56,8],[56,10,56,11],[57,10,57,14],[59,10,59,14],[60,7,60,8],[60,10,60,11],[61,10,61,14],[62,7,62,8],[62,10,62,11],[73,3,73,4],[72,7,72,9],[73,7,73,9],[71,3,71,8],[63,10,63,14],[66,4,66,6],[67,9,67,10],[67,5,67,6],[69,3,69,5],[84,5,84,11],[79,1,84,2],[83,8,83,14],[55,10,55,11],[77,7,77,8],[78,6,78,14],[75,1,78,2],[81,6,81,12],[83,3,83,7],[74,3,74,4],[55,1,74,2],[75,8,75,9],[76,8,76,9],[69,8,69,10],[70,6,70,11],[72,3,72,4]]}
[null,"（一般労働者用；常用、有期雇用型）＊裏面あり"]
[null,"労働条件通知書"]
[null,null,null,null,null,null,null,null,null,null,null,{"$f":"IF(入力画面!$C$10=\"\",\"年　　月　　日\",入力画面!$C$10)","v":"年　　月　　日"}]
[null,{"$f":"IF(入力画面!$B$5=\"\",\"\",入力画面!$B$5)","v":""},null,null,"様"]
[null,null,null,null,null,null,"事業場名称・所在地"]
[]
[null,null,null,null,null,null,"使用者職氏名"]
[null,null,null,null,"期間の定めなし",null,null,null,"期間の定めあり"]
[null,null,null,null,null,null,null,null,{"$f":"IF(OR(入力画面!$D$11 = \"\",入力画面!$F$11 = \"\"),\"（　　年　　月　　日～　　年　　月　　日）\",TEXT(入力画面!$D$11,\"（yyyy年mm月dd日\") & \"～　\"  &TEXT(入力画面!$F$11,\"yyyy年mm月dd日）\"))","v":"（　　年　　月　　日～　　年　　月　　日）"}]
[null,null,null,"※以下は、「契約期間」について「期間の定めあり」とした場合に記入"]
[null,null,null,"１　契約の更新の有無"]
[null,null,null,null,"自動的に更新する",null,null,null,"更新する場合があり得る"]
[null,null,null,null,"契約の更新はしない",null,null,null,"その他　　（",null,null,null,null,null,"）"]
[null,"契約期間",null,"２　契約の更新は次により判断する。"]
[null,null,null,null,"契約期間満了時の業務量",null,null,null,null,"勤務成績、態度",null,null,null,"能力"]
[null,null,null,null,"会社の経営状況",null,null,null,null,"従事している業務の進捗状況"]
[null,null,null,null,"その他","（",null,null,null,null,null,null,null,"）"]
[null,null,null,null,"【有期雇用特別措置法による特例の対象者の場合】"]
[null,null,null,null,"無期転換申込権が発生しない期間：",null,null,null,null,null,"Ⅰ（高度専門）"]
[null,null,null,null,null,null,null,null,null,null,"Ⅱ（定年後の高齢者）"]
[null,null,null,null,"Ⅰ　特定有期業務の開始から完了までの期間",null,null,null,null,null,"　　　年　　か月",null,null,"（上限10年））"]
[null,"就業の場所",null,{"$f":"IF(入力画面!$B$14=\"\",\"\",入力画面!$B$14)","v":""}]
[null,"従事すべき",null,{"$f":"IF(入力画面!$B$17=\"\",\"\",入力画面!$B$17)","v":""}]
[null,"業務の内容",null,null,null,"【有期雇用特別措置法による特例の対象者（高度専門）の場合】"]
[null,null,null,null,null,"・特定有期業務",null,null,null,null,null,"開始日："]
[null,null,null,null,null,null,null,null,null,null,null,"完了日："]
[null,"始業、終業の時刻、休憩時間、就業時転換((1)～(5)のうち該当す\nるもの一つに○を付けること。)、所定時間外労働の有無に関する事項",null,"１　始業・終業の時刻等"]
[null,null,null,null,"(1) 始業",null,null,"終業"]
[null,null,null,null,"【以下のような制度が労働者に適用される場合】"]
[null,null,null,null,"(2) 変形労働時間制等；",null,null,null,null,"単位の変形労働時間制",null,null,null,"交替制として"]
[null,null,null,null,"次の勤務時間の組み合わせによる。"]
[null,null,null,null,"始業",null,null,"終業",null,null,"適用日"]
[null,null,null,null,"始業",null,null,"終業",null,null,"適用日"]
[null,null,null,null,"始業",null,null,"終業",null,null,"適用日"]
[null,null,null,null,"(3) ﾌﾚｯｸｽﾀｲﾑ制；始業及び終業の時刻は労働者の決定に委ねる。"]
[null,null,null,null,null,"（ただし、ﾌﾚｷｼﾌﾞﾙﾀｲﾑ",null,null,"（始業）","　　時　分から　 時　分"]
[null,null,null,null,null,null,null,null,"（終業）","　　時　分から　 時　分"]
[null,null,null,null,null,null,null,"ｺｱﾀｲﾑ",null,"　　時　分から　 時　分"]
[null,null,null,null,"(4) 事業場外みなし労働時間制；",null,null,null,"（始業）","　時　分",null,"（終業）","　時　分"]
[null,null,null,null,"(5) 裁量労働制；",null,"（始業）","　時　分",null,"（終業）","　時　分"]
[null,null,null,null,null,null,"を基本とし、労働者の決定に委ねる。"]
[null,null,null,"○詳細は、就業規則"]
[null,null,null,"２　休憩時間",null,null,null,null,"分","３　所定時間外労働の有無"]
[null,null,null,"定例日；毎週",null,null,"曜日、国民の祝日、その他（",null,null,null,null,null,null,null,"）"]
[null,"休　　　日",null,"非定例日；週・月当たり",null,null,null,null,"日、その他（",null,null,null,null,null,"）"]
[null,null,null,"１年単位の変形労働時間制の場合－年間",null,null,null,null,null,null,"　　日"]
[null,null,null,"○詳細は、就業規則"]
[null,null,null,"１　年次有給休暇　６か月継続勤務した場合→",null,null,null,null,null,null,"日"]
[null,null,null,null,null,"継続勤務６か月以内の年次有給休暇有無"]
[null,null,null,null,"→",null,"か月経過で",null,null,"日"]
[null,"休　　　暇",null,null,null,"半日単位年休有無",null,null,null,"時間単位年休有無"]
[null,null,null,"２　代替休暇の有無"]
[null,null,null,"３　その他の休暇",null,null,"有給（",null,null,null,null,null,null,null,"）"]
[null,null,null,null,null,null,"無給（",null,null,null,null,null,null,null,"）"]
[null,null,null,"○詳細は、就業規則"]
[null,"賃　　　金",null,"１　基本賃金",null,{"$f":"IF(入力画面!$F$4=\"\",\"\",入力画面!$F$4)","v":""},null,null,"円","（方式）","月給"]
[null,null,null,"２　諸手当の額又は計算方法",null,null,null,{"$f":"IF(入力画面!$F$5=\"\",\"\",入力画面!$F$5)","v":""},null,"手当",{"$f":"IF(入力画面!$H$5=\"\",\"\",入力画面!$H$5)","v":""},null,"円"]
[null,null,null,"　（右記以外は就業規則等参照）",null,null,null,null,null,"計算方法"]
[null,null,null,null,null,null,null,{"$f":"IF(入力画面!$F$6=\"\",\"\",入力画面!$F$6)","v":""},null,"手当",{"$f":"IF(入力画面!$H$6=\"\",\"\",入力画面!$H$6)","v":""},null,"円"]
[null,null,null,null,null,null,null,null,null,"計算方法"]
[null,null,null,null,null,null,null,{"$f":"IF(入力画面!$F$7=\"\",\"\",入力画面!$F$7)","v":""},null,"手当",{"$f":"IF(入力画面!$H$7=\"\",\"\",入力画面!$H$7)","v":""},null,"円"]
[null,null,null,null,null,null,null,null,null,"計算方法"]
[null,null,null,null,null,null,null,{"$f":"IF(入力画面!$F$8=\"\",\"\",入力画面!$F$8)","v":""},null,"手当",{"$f":"IF(入力画面!$H$8=\"\",\"\",入力画面!$H$8)","v":""},null,"円"]
[null,null,null,null,null,null,null,null,null,"計算方法"]
[null,null,null,"３　所定時間外、休日又は深夜労働に対して支払われる割増賃金率"]
[null,null,null,null,"所定時間外、法定超　月６０時間以内",null,null,null,null,null,"％　　月６０時間超",null,null,null,"％"]
[null,null,null,null,"所定時間超",null,null,null,"％"]
[null,null,null,null,"休日","　　　法定休日",null,null,"％","法定外休日",null,null,"％"]
[null,null,null,null,"深夜",null,null,null,"％"]
[null,null,null,"４　賃金締切日　毎月",null,null,null,"日","５　賃金支払日　毎月",null,null,null,"日"]
[null,null,null,"６　賃金の支払方法"]
[null,null,null,"７　労使協定に基づく賃金支払時の控除の有無"]
[null,null,null,"８　昇給有無",null,null,"時期"]
[null,null,null,"９　賞与有無",null,null,"時期"]
[null,null,null,"10　退職金有無"]
[null,"退職に関す\nる事項",null,"１　定年制",null,null,null,null,"ありの場合",null,null,"歳"]
[null,null,null,"２　継続雇用制度",null,null,null,null,"ありの場合",null,null,"歳"]
[null,null,null,"３　自己都合退職の手続",null,null,null,"退職する",null,null,"日以上前に届け出ること）"]
[null,null,null,"○詳細は、就業規則"]
[null,"そ　の　他",null,"社会保険の加入状況（該当に〇）"]
[null,null,null,null,null,"厚生年金",null,null,"健康保険",null,null,"厚生年金基金"]
[null,null,null,null,"その他","（",null,null,null,null,null,null,null,"）"]
[null,null,null,"雇用保険の適用有無"]
[null,null,null,"雇用管理の改善等に関する事項に係る相談窓口"]
[null,null,null,"その他","（",null,null,null,null,null,null,null,"）"]
[null,"※　以上のほかは、当社就業規則による。※　本通知は労使間の紛争の未然防止のため、保存しておくことをお勧めします。"]

{"sheet":"労働条件通知書作成ツール (短時間勤務)","index":2,"n_rows":84,"n_cols":15,"rows_kept":84,"cut":false,"hidden":false,"merged":[[11,4,11,6],[11,8,11,11],[0,1,0,14],[1,1,1,14],[2,11,2,14],[3,1,3,3],[4,6,4,8],[4,9,5,14],[5,6,5,8],[6,6,6,8],[6,9,6,14],[7,4,7,6],[7,8,7,10],[8,8,8,14],[17,1,17,2],[17,3,17,14],[18,3,18,14],[18,1,18,2],[12,4,12,6],[12,8,12,9],[12,10,12,13],[13,1,14,2],[16,6,16,12],[28,9,28,13],[19,1,38,2],[20,5,20,6],[20,8,20,9],[22,4,22,6],[22,9,22,11],[24,5,24,6],[24,8,24,9],[24,11,24,12],[25,5,25,6],[25,8,25,9],[25,11,25,12],[26,5,26,6],[26,8,26,9],[26,11,26,12],[29,9,29,13],[30,9,30,13],[31,9,31,10],[31,12,31,13],[32,4,32,5],[32,7,32,8],[32,10,32,11],[51,6,51,14],[34,6,34,14],[39,10,39,13],[40,8,40,9],[40,10,40,13],[43,6,43,14],[46,6,46,7],[47,5,47,7],[47,9,47,11],[49,3,49,5],[49,7,49,13],[50,7,50,13],[60,10,60,14],[63,4,63,6],[52,1,71,2],[52,5,52,7],[52,10,52,11],[53,7,53,8],[53,10,53,11],[54,10,54,14],[55,7,55,8],[55,10,55,11],[56,10,56,14],[57,7,57,8],[70,3,70,4],[70,7,70,9],[71,3,71,4],[72,1,75,2],[72,8,72,9],[73,8,73,9],[74,7,74,8],[75,6,75,14],[38,8,38,9],[42,6,42,9],[42,12,42,13],[42,10,42,11],[69,3,69,4],[69,7,69,9],[64,5,64,6],[64,9,64,10],[66,3,66,5],[66,8,66,10],[67,6,67,11],[68,3,68,8],[57,10,57,11],[58,10,58,14],[59,7,59,8],[59,10,59,11],[76,1,81,2],[78,6,78,12],[80,3,80,7],[80,8,80,14],[81,5,81,11]]}
[null,"（短時間労働者用；常用、有期雇用型）＊裏面あり"]
[null,"労働条件通知書"]
[null,null,null,null,null,null,null,null,null,null,null,{"$f":"IF(入力画面!$C$10=\"\",\"年　　月　　日\",入力画面!$C$10)","v":"年　　月　　日"}]
[null,{"$f":"IF(入力画面!$B$5=\"\",\"\",入力画面!$B$5)","v":""},null,null,"様"]
[null,null,null,null,null,null,"事業場名称・所在地"]
[]
[null,null,null,null,null,null,"使用者職氏名"]
[null,null,null,null,"期間の定めなし",null,null,null,"期間の定めあり"]
[null,null,null,null,null,null,null,null,{"$f":"IF(OR(入力画面!$D$11 = \"\",入力画面!$F$11 = \"\"),\"（　　年　　月　　日～　　年　　月　　日）\",TEXT(入力画面!$D$11,\"（yyyy年mm月dd日\") & \"～　\"  &TEXT(入力画面!$F$11,\"yyyy年mm月dd日）\"))","v":"（　　年　　月　　日～　　年　　月　　日）"}]
[null,null,null,"※以下は、「契約期間」について「期間の定めあり」とした場合に記入"]
[null,null,null,"１　契約の更新の有無"]
[null,null,null,null,"自動的に更新する",null,null,null,"更新する場合があり得る"]
[null,null,null,null,"契約の更新はしない",null,null,null,"その他　　（",null,null,null,null,null,"）"]
[null,"契約期間",null,"２　契約の更新は次により判断する。"]
[null,null,null,null,"契約期間満了時の業務量",null,null,null,null,"勤務成績、態度",null,null,null,"能力"]
[null,null,null,null,"会社の経営状況",null,null,null,null,"従事している業務の進捗状況"]
[null,null,null,null,"その他","（",null,null,null,null,null,null,null,"）"]
[null,"就業の場所",null,{"$f":"IF(入力画面!$B$14=\"\",\"\",入力画面!$B$14)","v":""}]
[null,"従事すべき業務の内容",null,{"$f":"IF(入力画面!$B$17=\"\",\"\",入力画面!$B$17)","v":""}]
[null,"始業、終業の時刻、休憩時間、就業時転換((1)～(5)のうち該当す\nるもの一つに○を付けること。)、所定時間外労働の有無に関する事項",null,"１　始業・終業の時刻等"]
[null,null,null,null,"(1) 始業",null,null,"終業"]
[null,null,null,null,"【以下のような制度が労働者に適用される場合】"]
[null,null,null,null,"(2) 変形労働時間制等；",null,null,null,null,"単位の変形労働時間制",null,null,null,"交替制として"]
[null,null,null,null,"次の勤務時間の組み合わせによる。"]
[null,null,null,null,"始業",null,null,"終業",null,null,"適用日"]
[null,null,null,null,"始業",null,null,"終業",null,null,"適用日"]
[null,null,null,null,"始業",null,null,"終業",null,null,"適用日"]
[null,null,null,null,"(3) ﾌﾚｯｸｽﾀｲﾑ制；始業及び終業の時刻は労働者の決定に委ねる。"]
[null,null,null,null,null,"（ただし、ﾌﾚｷｼﾌﾞﾙﾀｲﾑ",null,null,"（始業）","　　時　分から　 時　分"]
[null,null,null,null,null,null,null,null,"（終業）","　　時　分から　 時　分"]
[null,null,null,null,null,null,null,"ｺｱﾀｲﾑ",null,"　　時　分から　 時　分"]
[null,null,null,null,"(4) 事業場外みなし労働時間制；",null,null,null,"（始業）","　時　分",null,"（終業）","　時　分"]
[null,null,null,null,"(5) 裁量労働制；",null,"（始業）","　時　分",null,"（終業）","　時　分"]
[null,null,null,null,null,null,"を基本とし、労働者の決定に委ねる。"]
[null,null,null,"○詳細は、就業規則"]
[null,null,null,"２　休憩時間",null,null,null,null,"分"]
[null,null,null,"３　所定時間外労働の有無"]
[null,null,null,null,null,null,"ありの場合　1週",null,"時間","1か月",null,"時間","1年",null,"時間"]
[null,null,null,"４　休日労働の有無",null,null,null,null,"ありの場合　1か月",null,null,"時間","1年",null,"時間"]
[null,null,null,"定例日；毎週",null,null,"曜日、国民の祝日、その他（",null,null,null,null,null,null,null,"）"]
[null,"休　　　日",null,"非定例日；週・月当たり",null,null,null,null,"日、その他（",null,null,null,null,null,"）"]
[null,"および",null,"１年単位の変形労働時間制の場合－年間",null,null,null,null,null,null,"　　日"]
[null,"勤　務　日",null,"（勤務日）",null,"毎週（",null,null,null,null,"）その他（",null,null,null,"）"]
[null,null,null,"○詳細は、就業規則"]
[null,null,null,"１　年次有給休暇　６か月継続勤務した場合→",null,null,null,null,null,null,"日"]
[null,null,null,null,null,"継続勤務６か月以内の年次有給休暇有無"]
[null,null,null,null,"→",null,"か月経過で",null,null,"日"]
[null,"休　　　暇",null,null,null,"半日単位年休有無",null,null,null,"時間単位年休有無"]
[null,null,null,"２　代替休暇の有無"]
[null,null,null,"３　その他の休暇",null,null,"有給（",null,null,null,null,null,null,null,"）"]
[null,null,null,null,null,null,"無給（",null,null,null,null,null,null,null,"）"]
[null,null,null,"○詳細は、就業規則"]
[null,"賃　　　金",null,"１　基本賃金",null,{"$f":"IF(入力画面!$F$4=\"\",\"\",入力画面!$F$4)","v":""},null,null,"円","（方式）","月給"]
[null,null,null,"２　諸手当の額又は計算方法",null,null,null,{"$f":"IF(入力画面!$F$5=\"\",\"\",入力画面!$F$5)","v":""},null,"手当",{"$f":"IF(入力画面!$H$5=\"\",\"\",入力画面!$H$5)","v":""},null,"円"]
[null,null,null,"　（右記以外は就業規則等参照）",null,null,null,null,null,"計算方法"]
[null,null,null,null,null,null,null,{"$f":"IF(入力画面!$F$6=\"\",\"\",入力画面!$F$6)","v":""},null,"手当",{"$f":"IF(入力画面!$H$6=\"\",\"\",入力画面!$H$6)","v":""},null,"円"]
[null,null,null,null,null,null,null,null,null,"計算方法"]
[null,null,null,null,null,null,null,{"$f":"IF(入力画面!$F$7=\"\",\"\",入力画面!$F$7)","v":""},null,"手当",{"$f":"IF(入力画面!$H$7=\"\",\"\",入力画面!$H$7)","v":""},null,"円"]
[null,null,null,null,null,null,null,null,null,"計算方法"]
[null,null,null,null,null,null,null,{"$f":"IF(入力画面!$F$8=\"\",\"\",入力画面!$F$8)","v":""},null,"手当",{"$f":"IF(入力画面!$H$8=\"\",\"\",入力画面!$H$8)","v":""},null,"円"]
[null,null,null,null,null,null,null,null,null,"計算方法"]
[null,null,null,"３　所定時間外、休日又は深夜労働に対して支払われる割増賃金率"]
[null,null,null,null,"所定時間外、法定超　月６０時間以内",null,null,null,null,null,"％　　月６０時間超",null,null,null,"％"]
[null,null,null,null,"所定時間超",null,null,null,"％"]
[null,null,null,null,"休日","　　　法定休日",null,null,"％","法定外休日",null,null,"％"]
[null,null,null,null,"深夜",null,null,null,"％"]
[null,null,null,"４　賃金締切日　毎月",null,null,null,"日","５　賃金支払日　毎月",null,null,null,"日"]
[null,null,null,"６　賃金の支払方法"]
[null,null,null,"７　労使協定に基づく賃金支払時の控除の有無"]
[null,null,null,"８　昇給有無",null,null,"時期"]
[null,null,null,"９　賞与有無",null,null,"時期"]
[null,null,null,"10　退職金有無"]
[null,"退職に関す\nる事項",null,"１　定年制",null,null,null,null,"ありの場合",null,null,"歳"]
[null,null,null,"２　継続雇用制度",null,null,null,null,"ありの場合",null,null,"歳"]
[null,null,null,"３　自己都合退職の手続",null,null,null,"退職する",null,null,"日以上前に届け出ること）"]
[null,null,null,"○詳細は、就業規則"]
[null,"そ　の　他",null,"社会保険の加入状況（該当に〇）"]
[null,null,null,null,null,"厚生年金",null,null,"健康保険",null,null,"厚生年金基金"]
[null,null,null,null,"その他","（",null,null,null,null,null,null,null,"）"]
[null,null,null,"雇用保険の適用有無"]
[null,null,null,"雇用管理の改善等に関する事項に係る相談窓口"]
[null,null,null,"その他","（",null,null,null,null,null,null,null,"）"]
[null,"※　以上のほかは、当社就業規則による。※　本通知は労使間の紛争の未然防止のため、保存しておくことをお勧めします。"]
[null,"※　本通知書の交付は、労働基準法第１５条に基づく労働条件の明示及び短時間労働者の雇用管理の改善等に関する法律第６条に基づく文書の交付を兼ねるものであること。"]